fUSD/lending_fUSD_20250611
["ID","MTS","AMOUNT","RATE_DAILY","PERIOD"]
[365428176,1749665450292,-2275.81,0.00019506,2]
[365428177,1749665450302,-516.6,0.00019506,2]
[365428178,1749665450311,-2744.06,0.00019506,2]
[365428179,1749665450320,-490.0,0.00019506,2]
[365428180,1749665450330,-519.94,0.00019506,2]
[365428181,1749665450339,-490.0,0.00019506,2]
[365428182,1749665450348,-490.0,0.00019506,2]
[365428183,1749665450357,-6275.09,0.00019506,2]
[365428184,1749665450367,-490.0,0.00019506,2]
[365428185,1749665450376,-630.77,0.00019506,2]
[365428186,1749665450386,-3922.25,0.00019506,2]
[365428187,1749665450395,-1502.99,0.00019506,2]
[365428188,1749665450405,-490.0,0.00019506,2]
[365428189,1749665450414,-765.7,0.00019506,2]
[365428190,1749665450424,-892.95,0.00019506,2]
[365428191,1749665450434,-490.0,0.00019506,2]
[365428192,1749665450443,-490.0,0.00019506,2]
[365428193,1749665450455,-518.42,0.00019506,2]
[365428194,1749665450465,-490.0,0.00019506,2]
[365428195,1749665450475,-490.0,0.00019506,2]
[365428196,1749665450484,-490.0,0.00019506,2]
[365428197,1749665450494,-490.0,0.00019506,2]
[365428198,1749665450504,-623.19,0.00019506,2]
[365428199,1749665450514,-490.0,0.00019506,2]
[365428200,1749665450523,-2282.12,0.00019506,2]
[365428201,1749665450532,-490.0,0.00019506,2]
[365428202,1749665450542,-490.12,0.00019506,2]
[365428203,1749665450551,-3128.31,0.00019506,2]
[365428204,1749665450561,-490.0,0.00019506,2]
[365428205,1749665450570,-490.0,0.00019506,2]
[365428206,1749665450579,-589.55,0.00019506,2]
[365428207,1749665450588,-1105.95,0.00019506,2]
[365428208,1749665450597,-611.86,0.00019506,2]
[365428209,1749665450607,-848.91,0.00019506,2]
[365428210,1749665450616,-490.0,0.00019506,2]
[365428211,1749665450625,-490.0,0.00019506,2]
[365428212,1749665450635,-364.45438102,0.00019506,2]
[365428213,1749665450645,-652.66,0.00019506,2]
[365428214,1749665450655,-497.31,0.00019506,2]
[365428215,1749665450664,-820.4,0.00019506,2]
[365428216,1749665450675,-539.33,0.00019506,2]
[365428217,1749665450684,-490.0,0.00019506,2]
[365428218,1749665450694,-8326.98,0.00019506,2]
[365428219,1749665450705,-777.87,0.00019506,2]
[365428220,1749665450715,-490.0,0.00019506,2]
[365428221,1749665450724,-490.0,0.00019506,2]
[365428222,1749665450733,-490.0,0.00019506,2]
[365428223,1749665450743,-490.0,0.00019506,2]
[365428224,1749665450752,-1358.39,0.00019506,2]
[365428225,1749665450761,-490.0,0.00019506,2]
[365428226,1749665450771,-836.2,0.00019506,2]
[365428227,1749665450779,-490.0,0.00019506,2]
[365428228,1749665450788,-490.0,0.00019506,2]
[365428229,1749665450797,-490.0,0.00019506,2]
[365428230,1749665450806,-684.96,0.00019506,2]
[365428231,1749665450815,-1022.84,0.00019506,2]
[365428232,1749665450824,-502.82,0.00019506,2]
[365428233,1749665450833,-492.03,0.00019506,2]
[365428234,1749665450842,-490.0,0.00019506,2]
[365428235,1749665450851,-490.0,0.00019506,2]
[365428236,1749665450860,-490.0,0.00019506,2]
[365428237,1749665450870,-498.99,0.00019506,2]
[365428238,1749665450879,-490.0,0.00019506,2]
[365428239,1749665450888,-4318.85,0.00019506,2]
[365428240,1749665450897,-490.0,0.00019506,2]
[365428241,1749665450906,-573.77,0.00019506,2]
[365428242,1749665450920,-490.0,0.00019506,2]
[365428243,1749665450929,-490.0,0.00019506,2]
[365428244,1749665450938,-7371.26,0.00019506,2]
[365428245,1749665450947,-490.0,0.00019506,2]
[365428246,1749665450958,-490.0,0.00019506,2]
[365428247,1749665450967,-1249.84,0.00019506,2]
[365428248,1749665450977,-688.21,0.00019506,2]
[365428249,1749665450987,-490.0,0.00019506,2]
[365428250,1749665450998,-490.0,0.00019506,2]
[365428251,1749665451007,-490.0,0.00019506,2]
[365428252,1749665451016,-490.0,0.00019506,2]
[365428253,1749665451025,-490.0,0.00019506,2]
[365428254,1749665451035,-1227.49,0.00019506,2]
[365428255,1749665451044,-663.12,0.00019506,2]
[365428256,1749665451054,-471.8,0.00019506,2]
[365428257,1749665451063,-490.0,0.00019506,2]
[365428258,1749665451073,-545.96,0.00019506,2]
[365428259,1749665451084,-805.48,0.00019506,2]
[365428260,1749665451094,-1170.51,0.00019506,2]
[365428261,1749665451103,-490.53,0.00019506,2]
[365428262,1749665451113,-490.0,0.00019506,2]
[365428263,1749665451123,-675.67,0.00019506,2]
[365428264,1749665451132,-490.0,0.00019506,2]
[365428265,1749665451142,-490.0,0.00019506,2]
[365428266,1749665451151,-490.0,0.00019506,2]
[365428267,1749665451161,-490.0,0.00019506,2]
[365428268,1749665451171,-608.7,0.00019506,2]
[365428269,1749665451180,-2119.05,0.00019506,2]
[365428270,1749665451190,-490.0,0.00019506,2]
[365428271,1749665451202,-490.0,0.00019506,2]
[365428272,1749665451211,-490.0,0.00019506,2]
[365428273,1749665451221,-490.0,0.00019506,2]
[365428274,1749665451230,-310.11315456,0.00019506,2]
[365428275,1749665451240,-780.55,0.00019506,2]
[365428276,1749665451250,-490.0,0.00019506,2]
[365428277,1749665451260,-490.0,0.00019506,2]
[365428278,1749665451269,-490.0,0.00019506,2]
[365428279,1749665451279,-2567.58,0.00019506,2]
[365428280,1749665451288,-490.0,0.00019506,2]
[365428281,1749665451298,-687.53,0.00019506,2]
[365428282,1749665451307,-1321.13,0.00019506,2]
[365428283,1749665451316,-926.34,0.00019506,2]
[365428284,1749665451325,-490.0,0.00019506,2]
[365428285,1749665451335,-490.0,0.00019506,2]
[365428286,1749665451344,-853.54,0.00019506,2]
[365428287,1749665451354,-991.14,0.00019506,2]
[365428288,1749665451363,-610.95,0.00019506,2]
[365428289,1749665451373,-757.01,0.00019506,2]
[365428290,1749665451384,-1688.85,0.00019506,2]
[365428291,1749665451394,-563.01,0.00019506,2]
[365428292,1749665451404,-490.0,0.00019506,2]
[365428293,1749665451413,-490.0,0.00019506,2]
[365428294,1749665451423,-1345.04,0.00019506,2]
[365428295,1749665451433,-490.0,0.00019506,2]
[365428296,1749665451442,-490.0,0.00019506,2]
[365428297,1749665451454,-599.34,0.00019506,2]
[365428298,1749665451464,-490.0,0.00019506,2]
[365428299,1749665451474,-803.83,0.00019506,2]
[365428300,1749665451484,-491.52,0.00019506,2]
[365428301,1749665451493,-493.17,0.00019506,2]
[365428302,1749665451503,-490.0,0.00019506,2]
[365428303,1749665451512,-474.58,0.00019506,2]
[365428304,1749665451522,-505.44,0.00019506,2]
[365428305,1749665451531,-706.74,0.00019506,2]
[365428306,1749665451541,-490.0,0.00019506,2]
[365428307,1749665451550,-3596.48,0.00019506,2]
[365428308,1749665451560,-706.66,0.00019506,2]
[365428309,1749665451570,-490.0,0.00019506,2]
[365428310,1749665451580,-470.0,0.00019506,2]
[365428311,1749665451590,-354.13254987,0.00019506,2]
[365428312,1749665451600,-490.0,0.00019506,2]
[365428313,1749665451610,-490.0,0.00019506,2]
[365428314,1749665451619,-490.0,0.00019506,2]
[365428315,1749665451628,-490.0,0.00019506,2]
[365428316,1749665451637,-664.35,0.00019506,2]
[365428317,1749665451648,-490.0,0.00019506,2]
[365428318,1749665451658,-490.0,0.00019506,2]
[365428319,1749665451667,-490.0,0.00019506,2]
[365428320,1749665451677,-1875.96,0.00019506,2]
[365428321,1749665451686,-495.47,0.00019506,2]
[365428322,1749665451695,-682.89,0.00019506,2]
[365428323,1749665451706,-791.36,0.00019506,2]
[365428324,1749665451715,-490.0,0.00019506,2]
[365428325,1749665451723,-490.0,0.00019506,2]
[365428326,1749665451732,-499.58,0.00019506,2]
[365428327,1749665451742,-1000.0,0.00019506,2]
[365428328,1749665451751,-1033.25,0.00019506,2]
[365428329,1749665451761,-490.0,0.00019506,2]
[365428330,1749665451770,-1493.64,0.00019506,2]
[365428331,1749665451780,-490.0,0.00019506,2]
[365428332,1749665451789,-490.0,0.00019506,2]
[365428333,1749665451798,-888.07,0.00019506,2]
[365428334,1749665451808,-490.0,0.00019506,2]
[365428335,1749665451817,-562.42,0.00019506,2]
[365428336,1749665451826,-490.0,0.00019506,2]
[365428337,1749665451835,-681.17,0.00019506,2]
[365428338,1749665451844,-490.0,0.00019506,2]
[365428339,1749665451853,-1791.2,0.00019506,2]
[365428340,1749665451863,-490.0,0.00019506,2]
[365428341,1749665451871,-490.0,0.00019506,2]
[365428342,1749665451880,-626.5,0.00019506,2]
[365428343,1749665451890,-837.0,0.00019519,2]
[365428344,1749665451899,-268.88753747,0.00019534,2]
[365428345,1749665451908,-710.01558031,0.00019578,2]
[365428346,1749665451919,-268.88753747,0.00019589,2]
[365428347,1749665451928,-211.0,0.0001959,2]
[365428348,1749665451937,-149585.33006664,0.00019599,2]
[365428349,1749665451947,-848.87769,0.00019599,2]
[365428350,1749665451960,-156.67294302,0.00019602,2]
[365428351,1749665451969,-154.04933508,0.00019626,2]
[365428352,1749665451979,-341.22,0.00019635,2]
[365428353,1749665451988,-151.0,0.0001967,2]
[365428354,1749665451999,-151.0,0.0001967,2]
[365428355,1749665452009,-151.0,0.0001967,2]
[365428356,1749665452018,-505.817169,0.0001967,2]
[365428357,1749665452027,-326.673354,0.0001967,2]
[365428358,1749665452036,-505.817169,0.0001967,2]
[365428359,1749665452045,-326.673354,0.0001967,2]
[365428360,1749665452054,-203.399788,0.0001967,2]
[365428361,1749665452064,-175.527648,0.0001967,2]
[365428362,1749665452074,-175.527648,0.0001967,2]
[365428363,1749665452083,-1108.44,0.0001967,2]
[365428364,1749665452093,-301.09,0.00019671,2]
[365428365,1749665452102,-151.0,0.00019671,2]
[365428366,1749665452111,-151.0,0.00019671,2]
[365428367,1749665452120,-490.0,0.00019671,2]
[365428368,1749665452129,-490.0,0.00019671,2]
[365428369,1749665452138,-151.0,0.00019671,2]
[365428370,1749665452147,-151.0,0.00019671,2]
[365428371,1749665452156,-490.0,0.00019671,2]
[365428372,1749665452165,-490.0,0.00019671,2]
[365428373,1749665452174,-490.0,0.00019671,2]
[365428374,1749665452183,-490.0,0.00019671,2]
[365428375,1749665452192,-490.0,0.00019671,2]
[365428376,1749665452205,-490.0,0.00019671,2]
[365428377,1749665452214,-490.0,0.00019671,2]
[365428378,1749665452224,-490.0,0.00019671,2]
[365428379,1749665452233,-490.0,0.00019671,2]
[365428380,1749665452243,-490.0,0.00019671,2]
[365428381,1749665452252,-490.0,0.00019671,2]
[365428382,1749665452262,-490.0,0.00019671,2]
[365428383,1749665452271,-490.0,0.00019671,2]
[365428384,1749665452281,-635.61,0.00019671,2]
[365428385,1749665452290,-620.45,0.00019671,2]
[365428386,1749665452299,-490.0,0.00019671,2]
[365428387,1749665452309,-490.0,0.00019671,2]
[365428388,1749665452318,-490.0,0.00019671,2]
[365428389,1749665452328,-490.0,0.00019671,2]
[365428390,1749665452337,-526.75,0.00019671,2]
[365428391,1749665452347,-490.0,0.00019671,2]
[365428392,1749665452356,-169.45,0.00019671,2]
[365428393,1749665452367,-185.12,0.00019671,2]
[365428394,1749665452377,-490.0,0.00019671,2]
[365428395,1749665452388,-490.0,0.00019671,2]
[365428396,1749665452397,-491.63,0.00019671,2]
[365428397,1749665452408,-836.29,0.00019671,2]
[365428398,1749665452418,-296.71,0.00019671,2]
[365428399,1749665452427,-490.0,0.00019671,2]
[365428400,1749665452437,-770.43,0.00019671,2]
[365428401,1749665452448,-490.0,0.00019671,2]
[365428402,1749665452459,-490.0,0.00019671,2]
[365428403,1749665452469,-842.53,0.00019671,2]
[365428404,1749665452479,-490.0,0.00019671,2]
[365428405,1749665452489,-496.82,0.00019671,2]
[365428406,1749665452499,-490.0,0.00019671,2]
[365428407,1749665452508,-490.0,0.00019671,2]
[365428408,1749665452518,-610.32,0.00019671,2]
[365428409,1749665452527,-490.0,0.00019671,2]
[365428410,1749665452537,-532.57,0.00019671,2]
[365428411,1749665452546,-558.85,0.00019671,2]
[365428412,1749665452556,-575.74,0.00019671,2]
[365428413,1749665452566,-537.75,0.00019671,2]
[365428414,1749665452576,-893.85,0.00019671,2]
[365428415,1749665452586,-490.0,0.00019671,2]
[365428416,1749665452596,-231.39,0.00019671,2]
[365428417,1749665452605,-490.0,0.00019671,2]
[365428418,1749665452615,-603.11698383,0.00019671,2]
[365428419,1749665452625,-690.08,0.00019671,2]
[365428420,1749665452635,-490.0,0.00019671,2]
[365428421,1749665452644,-490.0,0.00019671,2]
[365428422,1749665452655,-490.0,0.00019671,2]
[365428423,1749665452664,-490.0,0.00019671,2]
[365428424,1749665452674,-490.0,0.00019671,2]
[365428425,1749665452683,-490.0,0.00019671,2]
[365428426,1749665452693,-197.26,0.00019671,2]
[365428427,1749665452705,-490.0,0.00019671,2]
[365428428,1749665452715,-807.83,0.00019671,2]
[365428429,1749665452724,-490.0,0.00019671,2]
[365428430,1749665452733,-282.888688,0.00019671,2]
[365428431,1749665452743,-634.5,0.00019671,2]
[365428432,1749665452753,-490.0,0.00019671,2]
[365428433,1749665452762,-490.0,0.00019671,2]
[365428434,1749665452771,-259.2,0.00019671,2]
[365428435,1749665452781,-490.0,0.00019671,2]
[365428436,1749665452790,-502.4,0.00019671,2]
[365428437,1749665452799,-490.0,0.00019671,2]
[365428438,1749665452808,-680.15,0.00019671,2]
[365428439,1749665452818,-490.0,0.00019671,2]
[365428440,1749665452828,-490.0,0.00019671,2]
[365428441,1749665452838,-490.0,0.00019671,2]
[365428442,1749665452847,-490.0,0.00019671,2]
[365428443,1749665452857,-490.0,0.00019671,2]
[365428444,1749665452866,-490.0,0.00019671,2]
[365428445,1749665452875,-490.0,0.00019671,2]
[365428446,1749665452885,-490.0,0.00019671,2]
[365428447,1749665452894,-490.0,0.00019671,2]
[365428448,1749665452903,-490.0,0.00019671,2]
[365428449,1749665452917,-490.0,0.00019671,2]
[365428450,1749665452926,-490.0,0.00019671,2]
[365428451,1749665452935,-1022.7,0.00019671,2]
[365428452,1749665452945,-490.0,0.00019671,2]
[365428453,1749665452957,-490.0,0.00019671,2]
[365428454,1749665452966,-490.0,0.00019671,2]
[365428455,1749665452976,-490.0,0.00019671,2]
[365428456,1749665452987,-490.0,0.00019671,2]
[365428457,1749665452996,-490.0,0.00019671,2]
[365428458,1749665453006,-510.72,0.00019671,2]
[365428459,1749665453016,-490.0,0.00019671,2]
[365428460,1749665453026,-308.88247773,0.00019671,2]
[365428461,1749665453035,-490.0,0.00019671,2]
[365428462,1749665453045,-544.62,0.00019671,2]
[365428463,1749665453055,-490.0,0.00019671,2]
[365428464,1749665453066,-490.0,0.00019671,2]
[365428465,1749665453076,-567.29,0.00019671,2]
[365428466,1749665453086,-490.0,0.00019671,2]
[365428467,1749665453095,-201.21643374,0.00019671,2]
[365428468,1749665453105,-490.0,0.00019671,2]
[365428469,1749665453115,-490.0,0.00019671,2]
[365428470,1749665453125,-490.0,0.00019671,2]
[365428471,1749665453135,-490.0,0.00019671,2]
[365428472,1749665453144,-490.0,0.00019671,2]
[365428473,1749665453153,-490.0,0.00019671,2]
[365428474,1749665453165,-662.14,0.00019671,2]
[365428475,1749665453175,-490.0,0.00019671,2]
[365428476,1749665453185,-490.0,0.00019671,2]
[365428477,1749665453195,-490.0,0.00019671,2]
[365428478,1749665453207,-490.0,0.00019671,2]
[365428479,1749665453216,-490.0,0.00019671,2]
[365428480,1749665453226,-490.0,0.00019671,2]
[365428481,1749665453236,-490.0,0.00019671,2]
[365428482,1749665453245,-490.0,0.00019671,2]
[365428483,1749665453255,-682.68,0.00019671,2]
[365428484,1749665453265,-336.52,0.00019671,2]
[365428485,1749665453274,-490.0,0.00019671,2]
[365428486,1749665453284,-231.42,0.00019671,2]
[365428487,1749665453296,-490.0,0.00019671,2]
[365428488,1749665453307,-490.0,0.00019671,2]
[365428489,1749665453319,-568.56,0.00019671,2]
[365428490,1749665453330,-596.23846624,0.00019671,2]
[365428491,1749665453342,-490.0,0.00019671,2]
[365428492,1749665453355,-490.0,0.00019671,2]
[365428493,1749665453368,-2658.14,0.00019671,2]
[365428494,1749665453378,-490.0,0.00019671,2]
[365428495,1749665453388,-686.99,0.00019671,2]
[365428496,1749665453398,-516.07,0.00019671,2]
[365428497,1749665453407,-490.0,0.00019671,2]
[365428498,1749665453417,-2275.81,0.00019671,2]
[365428499,1749665453427,-516.6,0.00019671,2]
[365428500,1749665453438,-2744.06,0.00019671,2]
[365428501,1749665453447,-490.0,0.00019671,2]
[365428502,1749665453458,-519.94,0.00019671,2]
[365428503,1749665453468,-490.0,0.00019671,2]
[365428504,1749665453479,-490.0,0.00019671,2]
[365428505,1749665453489,-6275.09,0.00019671,2]
[365428506,1749665453499,-490.0,0.00019671,2]
[365428507,1749665453509,-630.77,0.00019671,2]
[365428508,1749665453518,-3922.25,0.00019671,2]
[365428509,1749665453528,-1502.99,0.00019671,2]
[365428510,1749665453538,-490.0,0.00019671,2]
[365428511,1749665453548,-765.7,0.00019671,2]
[365428512,1749665453558,-892.95,0.00019671,2]
[365428513,1749665453568,-490.0,0.00019671,2]
[365428514,1749665453578,-490.0,0.00019671,2]
[365428515,1749665453587,-518.42,0.00019671,2]
[365428516,1749665453597,-490.0,0.00019671,2]
[365428517,1749665453608,-490.0,0.00019671,2]
[365428518,1749665453617,-490.0,0.00019671,2]
[365428519,1749665453627,-490.0,0.00019671,2]
[365428520,1749665453636,-623.19,0.00019671,2]
[365428521,1749665453646,-490.0,0.00019671,2]
[365428522,1749665453656,-2282.12,0.00019671,2]
[365428523,1749665453666,-490.0,0.00019671,2]
[365428524,1749665453677,-3128.31,0.00019671,2]
[365428525,1749665453687,-490.12,0.00019671,2]
[365428526,1749665453697,-490.0,0.00019671,2]
[365428527,1749665453709,-490.0,0.00019671,2]
[365428528,1749665453718,-1105.95,0.00019671,2]
[365428529,1749665453728,-611.86,0.00019671,2]
[365428530,1749665453738,-848.91,0.00019671,2]
[365428531,1749665453748,-490.0,0.00019671,2]
[365428532,1749665453758,-490.0,0.00019671,2]
[365428533,1749665453769,-652.66,0.00019671,2]
[365428534,1749665453780,-497.31,0.00019671,2]
[365428535,1749665453789,-820.4,0.00019671,2]
[365428536,1749665453800,-539.33,0.00019671,2]
[365428537,1749665453810,-490.0,0.00019671,2]
[365428538,1749665453820,-8326.98,0.00019671,2]
[365428539,1749665453830,-777.87,0.00019671,2]
[365428540,1749665453840,-490.0,0.00019671,2]
[365428541,1749665453850,-490.0,0.00019671,2]
[365428542,1749665453860,-490.0,0.00019671,2]
[365428543,1749665453870,-490.0,0.00019671,2]
[365428544,1749665453880,-1358.39,0.00019671,2]
[365428545,1749665453890,-490.0,0.00019671,2]
[365428546,1749665453899,-836.2,0.00019671,2]
[365428547,1749665453909,-490.0,0.00019671,2]
[365428548,1749665453920,-490.0,0.00019671,2]
[365428549,1749665453931,-490.0,0.00019671,2]
[365428550,1749665453942,-684.96,0.00019671,2]
[365428551,1749665453951,-1022.84,0.00019671,2]
[365428552,1749665453963,-502.82,0.00019671,2]
[365428553,1749665453972,-492.03,0.00019671,2]
[365428554,1749665453982,-490.0,0.00019671,2]
[365428555,1749665453991,-490.0,0.00019671,2]
[365428556,1749665454001,-490.0,0.00019671,2]
[365428557,1749665454011,-498.99,0.00019671,2]
[365428558,1749665454020,-490.0,0.00019671,2]
[365428559,1749665454030,-4318.85,0.00019671,2]
[365428560,1749665454039,-490.0,0.00019671,2]
[365428561,1749665454049,-490.0,0.00019671,2]
[365428562,1749665454059,-490.0,0.00019671,2]
[365428563,1749665454069,-7371.26,0.00019671,2]
[365428564,1749665454078,-490.0,0.00019671,2]
[365428565,1749665454088,-490.0,0.00019671,2]
[365428566,1749665454098,-1249.84,0.00019671,2]
[365428567,1749665454108,-688.21,0.00019671,2]
[365428568,1749665454118,-490.0,0.00019671,2]
[365428569,1749665454127,-490.0,0.00019671,2]
[365428570,1749665454137,-490.0,0.00019671,2]
[365428571,1749665454146,-490.0,0.00019671,2]
[365428572,1749665454155,-490.0,0.00019671,2]
[365428573,1749665454165,-663.12,0.00019671,2]
[365428574,1749665454174,-1227.49,0.00019671,2]
[365428575,1749665454184,-490.0,0.00019671,2]
[365428576,1749665454193,-545.96,0.00019671,2]
[365428577,1749665454203,-805.48,0.00019671,2]
[365428578,1749665454212,-490.53,0.00019671,2]
[365428579,1749665454222,-1170.51,0.00019671,2]
[365428580,1749665454231,-490.0,0.00019671,2]
[365428581,1749665454241,-675.67,0.00019671,2]
[365428582,1749665454250,-490.0,0.00019671,2]
[365428583,1749665454259,-490.0,0.00019671,2]
[365428584,1749665454269,-363.61,0.00019671,2]
[365428585,1749665454278,-490.0,0.00019671,2]
[365428586,1749665454287,-608.7,0.00019671,2]
[365428587,1749665454297,-2119.05,0.00019671,2]
[365428588,1749665454306,-490.0,0.00019671,2]
[365428589,1749665454315,-490.0,0.00019671,2]
[365428590,1749665454324,-490.0,0.00019671,2]
[365428591,1749665454333,-439.02481359,0.00019671,2]
[365428592,1749665454342,-780.55,0.00019671,2]
[365428593,1749665454352,-490.0,0.00019671,2]
[365428594,1749665454362,-490.0,0.00019671,2]
[365428595,1749665454371,-490.0,0.00019671,2]
[365428596,1749665454381,-2567.58,0.00019671,2]
[365428597,1749665454390,-490.0,0.00019671,2]
[365428598,1749665454400,-687.53,0.00019671,2]
[365428599,1749665454410,-1321.13,0.00019671,2]
[365428600,1749665454420,-926.34,0.00019671,2]
[365428601,1749665454429,-490.0,0.00019671,2]
[365428602,1749665454438,-490.0,0.00019671,2]
[365428603,1749665454448,-853.54,0.00019671,2]
[365428604,1749665454459,-991.14,0.00019671,2]
[365428605,1749665454680,-757.01,0.00019671,2]
[365428606,1749665454735,-1688.85,0.00019671,2]
[365428607,1749665454745,-286.0399999,0.00019671,2]
[365428608,1749665454755,-563.01,0.00019671,2]
[365428609,1749665454764,-490.0,0.00019671,2]
[365428610,1749665454773,-1345.04,0.00019671,2]
[365428611,1749665454782,-490.0,0.00019671,2]
[365428612,1749665454792,-490.0,0.00019671,2]
[365428613,1749665454801,-599.34,0.00019671,2]
[365428614,1749665454811,-490.0,0.00019671,2]
[365428615,1749665454820,-803.83,0.00019671,2]
[365428616,1749665454829,-491.52,0.00019671,2]
[365428617,1749665454838,-493.17,0.00019671,2]
[365428618,1749665454848,-490.0,0.00019671,2]
[365428619,1749665454857,-505.44,0.00019671,2]
[365428620,1749665454866,-706.74,0.00019671,2]
[365428621,1749665454877,-490.0,0.00019671,2]
[365428622,1749665454888,-3596.48,0.00019671,2]
[365428623,1749665454898,-490.0,0.00019671,2]
[365428624,1749665454907,-706.66,0.00019671,2]
[365428625,1749665454919,-424.15,0.00019671,2]
[365428626,1749665454931,-490.0,0.00019671,2]
[365428627,1749665454940,-490.0,0.00019671,2]
[365428628,1749665454950,-438.91,0.00019671,2]
[365428629,1749665454966,-664.35,0.00019671,2]
[365428630,1749665454976,-490.0,0.00019671,2]
[365428631,1749665454986,-490.0,0.00019671,2]
[365428632,1749665454996,-490.0,0.00019671,2]
[365428633,1749665455007,-1875.96,0.00019671,2]
[365428634,1749665455016,-495.47,0.00019671,2]
[365428635,1749665455026,-682.89,0.00019671,2]
[365428636,1749665455036,-791.36,0.00019671,2]
[365428637,1749665455045,-490.0,0.00019671,2]
[365428638,1749665455055,-277.02493898,0.00019671,2]
[365428639,1749665455064,-499.58,0.00019671,2]
[365428640,1749665455073,-1000.0,0.00019671,2]
[365428641,1749665455082,-1033.25,0.00019671,2]
[365428642,1749665455092,-490.0,0.00019671,2]
[365428643,1749665455102,-1493.64,0.00019671,2]
[365428644,1749665455111,-490.0,0.00019671,2]
[365428645,1749665455121,-490.0,0.00019671,2]
[365428646,1749665455131,-888.07,0.00019671,2]
[365428647,1749665455141,-562.42,0.00019671,2]
[365428648,1749665455150,-458.73659788,0.00019671,2]
[365428649,1749665455160,-490.0,0.00019671,2]
[365428650,1749665455169,-681.17,0.00019671,2]
[365428651,1749665455179,-490.0,0.00019671,2]
[365428652,1749665455189,-1791.2,0.00019671,2]
[365428653,1749665455199,-490.0,0.00019671,2]
[365428654,1749665455211,-490.0,0.00019671,2]
[365428655,1749665455221,-268.88753747,0.00019671,2]
[365428656,1749665455230,-710.01558031,0.00019685,2]
[365428657,1749665455239,-1003.917,0.00019696,2]
[365428658,1749665455249,-268.88753747,0.00019753,2]
[365428659,1749665455259,-154.04933508,0.00019763,2]
[365428660,1749665455268,-710.01558031,0.00019793,2]
[365428661,1749665455278,-17265.13917942,0.0001981,2]
[365428662,1749665455287,-500.0,0.00019834,2]
[365428663,1749665455297,-161.23,0.00019834,2]
[365428664,1749665455306,-805.58,0.00019834,2]
[365428665,1749665455316,-1108.44,0.00019834,2]
[365428666,1749665455326,-151.0,0.00019835,2]
[365428667,1749665455336,-151.0,0.00019835,2]
[365428668,1749665455346,-151.0,0.00019835,2]
[365428669,1749665455355,-505.817169,0.00019835,2]
[365428670,1749665455365,-326.673354,0.00019835,2]
[365428671,1749665455374,-505.817169,0.00019835,2]
[365428672,1749665455384,-326.673354,0.00019835,2]
[365428673,1749665455394,-151.521334,0.00019835,2]
[365428674,1749665455404,-175.527648,0.00019835,2]
[365428675,1749665455414,-175.527648,0.00019835,2]